bitfinex-derivatives/quotes_BTCF0:USTF0_20250503
["timestamp","ask_amount","ask_price","bid_price","bid_amount"]
[1746266014909,0.5052183,96339.0,96338.0,0.15872723]
[1746266015109,0.6048183,96339.0,96338.0,0.15872723]
[1746266016009,0.94783519,96339.0,96338.0,0.15872723]
[1746266016508,0.94783519,96339.0,96338.0,0.16072723]
[1746266017010,0.94783519,96339.0,96338.0,0.002]
[1746266017196,0.94783519,96339.0,96338.0,0.004]
[1746266021103,0.95846047,96339.0,96338.0,0.004]
[1746266023209,0.95846047,96339.0,96338.0,0.122]
[1746266024109,0.95846047,96339.0,96338.0,0.004]
[1746266025106,0.95846047,96339.0,96338.0,0.122]
[1746266027098,0.95846047,96339.0,96338.0,0.004]
[1746266027503,1.31926047,96339.0,96338.0,0.0367]
[1746266028113,1.31926047,96339.0,96338.0,0.1547]
[1746266029510,0.95846047,96339.0,96338.0,0.1547]
[1746266029714,0.94783519,96339.0,96338.0,0.1547]
[1746266054727,0.6048183,96339.0,96338.0,0.1547]
[1746266054929,0.94783519,96339.0,96338.0,0.1547]
[1746266060529,0.74016519,96339.0,96338.0,0.1547]
[1746266060729,0.3971483,96339.0,96338.0,0.1547]
[1746266061327,0.3971483,96339.0,96338.0,0.122]
[1746266061528,0.6048183,96339.0,96338.0,0.122]
[1746266061831,0.94883519,96339.0,96338.0,0.118]
[1746266062329,0.2075634,96332.0,96331.0,0.15872723]
[1746266062523,0.2075763,96326.0,96318.0,0.0319]
[1746266062724,0.97826319,96326.0,96318.0,0.0319]
[1746266063029,0.2075828,96323.0,96318.0,0.0319]
[1746266063230,0.91826969,96323.0,96318.0,0.0319]
[1746266064425,0.92878384,96323.0,96318.0,0.0319]
[1746266064825,0.92878384,96323.0,96322.0,0.00255727]
[1746266065631,1.00813263,96323.0,96322.0,0.00255727]
[1746266066036,1.00813263,96323.0,96322.0,0.00355727]
[1746266070338,1.00813263,96323.0,96322.0,0.12155727]
[1746266070641,0.92878384,96323.0,96322.0,0.12155727]
[1746266071540,0.2076194,96306.0,96300.0,0.10008934]
[1746266071743,0.2076194,96306.0,96304.0,0.0319]
[1746266072039,0.2176194,96306.0,96304.0,0.0319]
[1746266072241,0.2176194,96306.0,96305.0,0.11903836]
[1746266072839,0.2176194,96306.0,96305.0,0.15963836]
[1746266073338,0.2508194,96306.0,96305.0,0.15963836]
[1746266076038,1.16230629,96306.0,96305.0,0.15963836]
[1746266076239,1.31110629,96306.0,96305.0,0.04163836]
[1746266077236,0.2076259,96303.0,96300.0,0.1]
[1746266077440,0.88831279,96303.0,96300.0,0.1]
[1746266078035,0.92121279,96303.0,96300.0,0.1]
[1746266078541,0.92121279,96303.0,96302.0,0.4177]
[1746266078842,0.92121279,96303.0,96302.0,0.004]
[1746266079346,0.92121279,96303.0,96302.0,0.007]
[1746266083543,1.28201279,96303.0,96302.0,0.007]
[1746266087141,1.28201279,96303.0,96302.0,0.19]
[1746266091249,1.28201279,96303.0,96302.0,0.072]
[1746266092148,1.28201279,96303.0,96302.0,0.19]
[1746266093956,1.28201279,96303.0,96302.0,0.188]
[1746266094752,1.28201279,96303.0,96302.0,0.1556]
[1746266095052,0.2076539,96290.0,96289.0,0.0331]
[1746266095251,0.2976539,96290.0,96289.0,0.0644]
[1746266096054,0.2976539,96290.0,96289.0,0.0674]
[1746266096254,0.2976539,96290.0,96289.0,0.1854]
[1746266096755,0.2976539,96290.0,96289.0,0.1874]
[1746266099959,0.84834079,96290.0,96289.0,0.1874]
[1746266100653,0.87944079,96290.0,96289.0,0.1874]
[1746266106262,0.87944079,96290.0,96289.0,0.0694]
[1746266106458,0.87944079,96290.0,96289.0,0.0363]
[1746266109160,0.87944079,96290.0,96289.0,0.005]
[1746266111259,0.91194079,96290.0,96289.0,0.005]
[1746266115071,0.91194079,96290.0,96289.0,0.123]
[1746266116467,0.91194079,96290.0,96289.0,0.155]
[1746266116667,0.91194079,96290.0,96289.0,0.1854]
[1746266120368,0.70427079,96290.0,96289.0,0.1854]
[1746266120676,0.91194079,96290.0,96289.0,0.1854]
[1746266121671,0.91194079,96290.0,96289.0,0.1534]
[1746266132691,0.2076819,96277.0,96266.0,0.3608]
[1746266132879,0.3876819,96277.0,96266.0,0.3608]
[1746266133188,0.3876819,96277.0,96276.0,0.1491]
[1746266133386,0.39862378,96277.0,96276.0,0.1491]
[1746266133887,0.39862378,96277.0,96276.0,0.1501]
[1746266134189,0.3876819,96277.0,96276.0,0.1501]
[1746266134576,0.3876819,96277.0,96276.0,0.1491]
[1746266134777,0.3896819,96277.0,96276.0,0.1501]
[1746266135880,0.3906819,96277.0,96276.0,0.2131]
[1746266140290,0.3906819,96277.0,96276.0,0.182]
[1746266140885,0.4208819,96277.0,96276.0,0.182]
[1746266143693,0.4208819,96277.0,96276.0,0.118]
[1746266143896,0.2077143,96262.0,96261.0,0.4137]
[1746266144097,0.2977143,96262.0,96261.0,0.4137]
[1746266144783,0.90990119,96262.0,96261.0,0.4137]
[1746266144994,0.2077208,96259.0,96256.0,0.00155842]
[1746266145191,0.2777208,96259.0,96256.0,0.00155842]
[1746266145586,0.3386208,96259.0,96256.0,0.00155842]
[1746266145996,0.2077251,96257.0,96256.0,0.00155842]
[1746266146195,0.2777251,96257.0,96256.0,0.11955842]
[1746266147494,0.2807251,96257.0,96256.0,0.11955842]
[1746266148097,0.2827251,96257.0,96256.0,0.11955842]
[1746266149097,0.2077337,96253.0,96249.0,0.21161405]
[1746266149285,0.2677337,96253.0,96249.0,0.21161405]
[1746266150092,0.2697337,96253.0,96252.0,0.1195584]
[1746266151689,0.2707337,96253.0,96252.0,0.1195584]
[1746266153495,0.3035337,96253.0,96252.0,0.1195584]
[1746266159596,0.2077445,96248.0,96247.0,0.0335]
[1746266159790,0.2077445,96248.0,96245.0,0.00103901]
[1746266159791,0.2077488,96246.0,96245.0,0.00103901]
[1746266159996,0.2477488,96246.0,96245.0,0.00103901]
[1746266160205,0.299686,96246.0,96245.0,0.118]
[1746266160504,0.360786,96246.0,96245.0,0.118]
[1746266161304,0.360786,96246.0,96236.0,0.0628]
[1746266161305,0.0519413,96239.0,96235.0,0.3608]
[1746266161508,0.75845729,96236.0,96235.0,0.3608]
[1746266161699,0.2077855,96229.0,96228.0,0.0303]
[1746266161900,0.2077855,96229.0,96228.0,0.0628]
[1746266162402,0.2077855,96229.0,96228.0,0.1808]
[1746266162904,0.2077855,96229.0,96228.0,0.1838]
[1746266163701,0.2077855,96229.0,96228.0,0.1848]
[1746266163897,0.2077855,96229.0,96228.0,0.1948]
[1746266164411,0.2077855,96229.0,96228.0,0.1938]
[1746266165309,0.2577855,96229.0,96228.0,0.121]
[1746266165601,0.3229855,96229.0,96228.0,0.121]
[1746266165801,0.2077855,96229.0,96228.0,0.191]
[1746266166399,0.2077855,96229.0,96228.0,0.121]
[1746266167709,0.2826855,96229.0,96228.0,0.121]
[1746266168405,0.2496855,96229.0,96228.0,0.121]
[1746266169400,0.2496855,96229.0,96228.0,0.3287827]
[1746266169401,0.2077855,96229.0,96228.0,0.3287827]
[1746266169607,0.2077855,96229.0,96228.0,0.3387827]
[1746266172302,0.2077855,96229.0,96228.0,0.4020827]
[1746266177334,0.2077855,96229.0,96228.0,1.9020827]
[1746266180334,0.2077855,96229.0,96228.0,2.2628827]
[1746266181427,0.2677855,96229.0,96228.0,2.2628827]
[1746266181633,0.2677855,96229.0,96228.0,2.2528827]
[1746266182433,0.2991855,96229.0,96228.0,2.2528827]
[1746266187435,0.2391855,96229.0,96228.0,2.3228827]
[1746266190335,1e-08,96229.0,96228.0,2.42680269]
[1746266190540,0.3608,96271.0,96228.0,2.42680269]
[1746266190541,0.2596908,96246.0,96245.0,0.2077424]
[1746266190729,0.2596908,96246.0,96245.0,0.6385424]
[1746266191130,0.2596908,96246.0,96245.0,0.7565424]
[1746266191440,0.2596908,96246.0,96245.0,0.8194424]
[1746266191828,0.2626908,96246.0,96245.0,0.8194424]
[1746266193736,0.2929908,96246.0,96245.0,0.8194424]
[1746266194040,0.3260908,96246.0,96245.0,0.8194424]
[1746266195837,0.44022818,96263.0,96254.0,0.0519327]
[1746266196038,0.2077294,96255.0,96254.0,0.02]
[1746266196237,0.80841629,96255.0,96254.0,0.118]
[1746266196631,0.80841629,96255.0,96254.0,0.3257316]
[1746266196827,0.80841629,96255.0,96254.0,0.118]
[1746266197341,0.84121629,96255.0,96254.0,0.118]
[1746266197636,0.84121629,96255.0,96254.0,0.3257316]
[1746266197942,0.84521629,96255.0,96254.0,0.3257316]
[1746266198938,0.84821629,96255.0,96254.0,0.3257316]
[1746266203442,0.60768689,96255.0,96254.0,0.7394316]
[1746266203653,0.0853283,96263.0,96262.0,0.2077143]
[1746266203946,0.0853283,96263.0,96262.0,0.6385143]
[1746266204157,0.0853283,96263.0,96262.0,0.7565143]
[1746266204346,0.2411193,96263.0,96262.0,0.7565143]
[1746266204745,0.2461193,96263.0,96262.0,0.7565143]
[1746266204952,0.0384,96263.0,96262.0,0.7565143]
[1746266205253,0.0414,96263.0,96262.0,0.7565143]
[1746266207255,0.0751,96263.0,96262.0,0.7565143]
[1746266209249,0.1751,96263.0,96262.0,0.6865143]
[1746266210055,0.1751,96263.0,96262.0,0.4788]
[1746266210356,0.72582909,96263.0,96262.0,0.4788]
[1746266215056,0.62582909,96263.0,96262.0,0.4988]
[1746266219662,0.83349909,96263.0,96262.0,0.4988]
[1746266223065,0.83349909,96263.0,96262.0,0.138]
[1746266224558,0.91349909,96263.0,96262.0,0.118]
[1746266229462,1.27429909,96263.0,96262.0,0.118]
[1746266230368,0.7236122,96263.0,96262.0,0.118]
[1746266243184,0.6436122,96263.0,96262.0,0.198]
[1746266246384,0.2828122,96263.0,96262.0,0.198]
[1746266270013,0.2828122,96263.0,96262.0,0.118]
[1746266294724,0.62582909,96263.0,96262.0,0.118]
[1746266295323,0.63582909,96263.0,96262.0,0.118]
[1746266302627,0.2928122,96263.0,96262.0,0.118]
[1746266302826,0.63582909,96263.0,96262.0,0.118]
[1746266303528,0.62582909,96263.0,96262.0,0.118]
[1746266303720,0.62582909,96263.0,96262.0,0.1526]
[1746266306125,0.2157122,96263.0,96262.0,0.3603143]
[1746266306321,0.2157122,96263.0,96262.0,0.4252143]
[1746266306626,0.2157122,96263.0,96262.0,0.4604143]
[1746266307327,0.2107122,96263.0,96262.0,0.4604143]
[1746266307526,0.2137122,96263.0,96262.0,0.4604143]
[1746266308825,0.2107122,96263.0,96262.0,0.4604143]
[1746266309128,0.2137122,96263.0,96262.0,0.4604143]
[1746266322540,0.2137122,96263.0,96262.0,0.4255143]
[1746266322735,0.2479122,96263.0,96262.0,0.4255143]
[1746266325440,0.2479122,96263.0,96262.0,0.2178]
[1746266326541,0.2479122,96263.0,96262.0,0.4255143]
[1746266330841,0.2137122,96263.0,96262.0,0.4255143]
[1746266336152,0.2489122,96263.0,96262.0,0.4255143]
[1746266336952,0.2489122,96263.0,96262.0,0.44096974]
[1746266337743,0.2489122,96263.0,96262.0,0.4255143]
[1746266346159,0.2489122,96263.0,96262.0,0.44088357]
[1746266346453,0.24112049,96263.0,96262.0,0.45561325]
[1746266349160,0.24112049,96263.0,96262.0,0.44024398]
[1746266351374,0.0412,96263.0,96262.0,0.44024398]
[1746266351875,0.0749,96263.0,96262.0,0.44024398]
[1746266352384,0.0749,96263.0,96262.0,0.59919761]
[1746266353276,0.06970562,96263.0,96262.0,0.59919761]
[1746266353479,0.27441782,96263.0,96262.0,0.59919761]
[1746266353684,0.27741782,96263.0,96262.0,0.59919761]
[1746266354085,0.06970562,96263.0,96262.0,0.59919761]
[1746266354584,0.06370562,96263.0,96262.0,0.59919761]
[1746266354783,0.0397,96263.0,96262.0,0.59919761]
[1746266355176,0.0397,96263.0,96262.0,0.61465759]
[1746266355581,0.0397,96263.0,96262.0,2.11465759]
[1746266356570,0.03190847,96263.0,96262.0,2.11465759]
[1746266356773,0.03190847,96263.0,96262.0,1.95570396]
[1746266356974,0.02890847,96263.0,96262.0,1.95570396]
[1746266357174,0.02990847,96263.0,96262.0,1.95570396]
[1746266358685,0.02990847,96263.0,96262.0,1.95578268]
[1746266360088,0.02990847,96263.0,96262.0,1.92118268]
[1746266360678,0.27302067,96263.0,96262.0,1.92118268]
[1746266361480,0.06530847,96263.0,96262.0,1.92118268]
[1746266362186,0.06530847,96263.0,96262.0,1.92111904]
[1746266363686,0.06530847,96263.0,96262.0,2.08003048]
[1746266364189,0.06530847,96263.0,96262.0,2.06455542]
[1746266365192,0.06530847,96263.0,96262.0,2.08000009]
[1746266367089,0.05751678,96263.0,96262.0,2.08000009]
[1746266367285,0.05751678,96263.0,96262.0,2.06455542]
[1746266367486,0.05751678,96263.0,96262.0,1.94114398]
[1746266368691,0.01692233,96263.0,96262.0,1.94169432]
[1746266369187,0.01692233,96263.0,96262.0,1.95706239]
[1746266369392,0.0347,96266.0,96265.0,0.2077078]
[1746266369592,0.24237,96266.0,96265.0,0.34307587]
[1746266369892,0.58538689,96266.0,96265.0,0.35835589]
[1746266370080,0.79309259,96266.0,96265.0,0.47635589]
[1746266370281,0.58538689,96266.0,96265.0,0.54575589]
[1746266370492,0.79309259,96266.0,96265.0,0.54575589]
[1746266370693,0.79609259,96266.0,96265.0,0.54575589]
[1746266370992,0.79609259,96266.0,96265.0,2.04575589]
[1746266371188,0.79609259,96266.0,96265.0,2.03038782]
[1746266371394,0.80609259,96266.0,96265.0,1.91038782]
[1746266371598,0.80809259,96266.0,96265.0,1.91038782]
[1746266377699,0.80030104,96266.0,96265.0,1.91038782]
[1746266383806,0.79510667,96266.0,96265.0,1.91038782]
[1746266384505,0.58740097,96266.0,96265.0,1.91038782]
[1746266384702,0.24438408,96266.0,96265.0,1.91038782]
[1746266384909,0.58740097,96266.0,96265.0,1.91038782]
[1746266385205,0.79510667,96266.0,96265.0,1.91038782]
[1746266385405,0.79510667,96266.0,96265.0,1.92583195]
[1746266386706,0.58740097,96266.0,96265.0,1.92583195]
[1746266386906,0.57740097,96266.0,96265.0,2.04583195]
[1746266387402,0.0352,96268.0,96267.0,0.2077035]
[1746266387604,0.10593086,96286.0,96278.0,0.2076798]
[1746266387901,0.10593086,96286.0,96285.0,0.2076647]
[1746266388208,0.0981411,96286.0,96285.0,0.45094472]
[1746266388407,0.0349,96293.0,96292.0,0.2076496]
[1746266388608,0.37791689,96293.0,96292.0,0.6684496]
[1746266388805,0.58558689,96293.0,96292.0,0.68372962]
[1746266389104,0.79323429,96293.0,96292.0,2.30172962]
[1746266389309,0.58558689,96293.0,96292.0,2.36842962]
[1746266390010,0.79323429,96293.0,96292.0,2.36842962]
[1746266390813,0.79423429,96293.0,96292.0,2.36842962]
[1746266392607,0.0359,96293.0,96292.0,2.36842962]
[1746266393008,0.1199075,96301.0,96298.0,0.2076351]
[1746266393009,0.207636,96299.0,96298.0,0.2076351]
[1746266393311,0.207636,96299.0,96298.0,0.2476351]
[1746266393504,0.75832289,96299.0,96298.0,0.26291512]
[1746266394205,0.75932289,96299.0,96298.0,0.38091512]
[1746266394405,0.55168689,96299.0,96298.0,0.38091512]
[1746266394596,0.55168689,96299.0,96298.0,0.41361512]
[1746266394804,0.79272139,96299.0,96298.0,0.41361512]
[1746266395004,0.82982139,96299.0,96298.0,0.20598002]
[1746266395207,0.82982139,96299.0,96298.0,0.41361672]
[1746266395808,0.82982139,96299.0,96298.0,0.37361672]
[1746266396009,0.82982139,96299.0,96298.0,0.40361672]
[1746266396415,0.82982139,96299.0,96298.0,0.41902525]
[1746266397615,0.82982139,96299.0,96298.0,0.21138855]
[1746266398006,0.82982139,96299.0,96298.0,0.41901531]
[1746266398716,0.81683954,96299.0,96298.0,0.21137861]
[1746266399314,0.81683954,96299.0,96298.0,0.41901531]
[1746266399819,0.81683954,96299.0,96298.0,0.21137861]
[1746266400005,0.81683954,96299.0,96298.0,0.18137861]
[1746266400208,0.81683954,96299.0,96298.0,0.14867861]
[1746266400209,0.89683954,96299.0,96298.0,0.14867861]
[1746266400412,0.89683954,96299.0,96298.0,0.13328002]
[1746266401214,1.61148354,96299.0,96298.0,0.01528002]
[1746266401420,0.2076755,96280.0,96279.0,0.15890473]
[1746266401608,0.77538054,96280.0,96279.0,0.17432095]
[1746266401817,0.87924454,96280.0,96279.0,0.17432095]
[1746266402216,0.91124454,96280.0,96279.0,0.17432095]
[1746266402712,0.94494454,96280.0,96279.0,0.17435053]
[1746266403116,0.94494454,96280.0,96279.0,0.29235053]
[1746266403416,0.94494454,96280.0,96279.0,0.1364458]
[1746266403823,0.94494454,96280.0,96279.0,0.1354458]
[1746266404125,0.94694454,96280.0,96279.0,0.0154458]
[1746266404607,0.94494454,96280.0,96279.0,0.0154458]
[1746266404806,0.94694454,96280.0,96279.0,0.0154458]
[1746266406214,0.2076971,96270.0,96269.0,0.2402987]
[1746266406414,0.80540214,96270.0,96269.0,0.25573698]
[1746266406815,0.46238525,96270.0,96269.0,0.25573698]
[1746266407016,0.52988525,96270.0,96269.0,0.25573698]
[1746266407325,0.52988525,96270.0,96269.0,0.37373698]
[1746266407527,0.53288525,96270.0,96269.0,0.37373698]
[1746266408824,0.063,96270.0,96269.0,0.37373698]
[1746266409129,0.2706971,96270.0,96269.0,0.40713698]
[1746266413728,0.2706971,96270.0,96269.0,0.42281241]
[1746266414025,0.26550301,96270.0,96269.0,0.42281241]
[1746266414727,0.29980301,96270.0,96269.0,0.42281241]
[1746266417031,0.83750805,96270.0,96269.0,0.18204069]
[1746266417233,0.86950805,96270.0,96269.0,0.18204069]
[1746266418435,0.86950805,96270.0,96269.0,0.16627543]
[1746266418634,0.86950805,96270.0,96269.0,0.37397463]
[1746266418943,0.86171693,96270.0,96269.0,0.37397463]
[1746266419433,0.81470214,96270.0,96269.0,0.37397463]
[1746266420221,0.81470214,96270.0,96269.0,0.40617463]
[1746266420629,0.2106971,96270.0,96269.0,0.42160255]
[1746266424239,0.2106971,96270.0,96269.0,0.42174987]
[1746266424538,0.2106971,96270.0,96269.0,0.78254987]
[1746266425639,0.2106971,96270.0,96269.0,0.76697463]
[1746266428936,0.2076971,96270.0,96269.0,0.76697463]
[1746266429132,0.19771229,96270.0,96269.0,0.76697463]
[1746266431446,0.23291229,96270.0,96269.0,0.76697463]
[1746266433544,0.23291229,96270.0,96269.0,0.79697463]
[1746266433749,0.77061733,96270.0,96269.0,0.52707543]
[1746266434244,0.80061733,96270.0,96269.0,0.52707543]
[1746266437944,0.80061733,96270.0,96269.0,0.16627543]
[1746266438655,0.80061733,96270.0,96269.0,0.37397463]
[1746266439957,0.79282576,96270.0,96269.0,0.37397463]
[1746266440756,0.79282576,96270.0,96269.0,0.38933989]
[1746266443650,0.79282576,96270.0,96269.0,0.37397463]
[1746266443858,0.79282576,96270.0,96269.0,0.38932458]
[1746266444246,0.78763141,96270.0,96269.0,0.38932458]
[1746266445759,0.78763141,96270.0,96269.0,0.37397463]
[1746266448563,0.78763141,96270.0,96269.0,0.38933007]
[1746266448955,0.21472637,96270.0,96269.0,0.38933007]
[1746266449462,0.18472637,96270.0,96269.0,0.42163007]
[1746266450162,0.176935,96270.0,96269.0,0.42163007]
[1746266450562,0.208635,96270.0,96269.0,0.40627463]
[1746266452560,0.2076926,96277.0,96274.0,0.0519217]
[1746266452865,0.2076841,96276.0,96275.0,0.2743841]
[1746266453059,0.2076841,96276.0,96275.0,0.29005953]
[1746266453561,0.2076841,96276.0,96275.0,0.30005953]
[1746266453762,0.2076841,96276.0,96275.0,0.29005953]
[1746266453963,0.2076841,96276.0,96275.0,0.31005953]
[1746266454152,0.2076841,96276.0,96275.0,1.92805953]
[1746266454349,0.2096841,96276.0,96275.0,1.92805953]
[1746266455061,0.2116841,96276.0,96275.0,1.92805953]
[1746266459163,0.20649027,96276.0,96275.0,1.92805953]
[1746266460368,0.19869952,96276.0,96275.0,1.92805953]
[1746266462464,0.19869952,96276.0,96275.0,1.90805953]
[1746266462659,0.19869952,96276.0,96275.0,1.93805953]
[1746266465062,0.26709952,96276.0,96275.0,1.93805953]
[1746266465568,0.26709952,96276.0,96275.0,1.90805953]
[1746266468968,0.26709952,96276.0,96275.0,0.40805953]
[1746266472578,0.27709952,96276.0,96275.0,0.20037543]
[1746266473674,0.27709952,96276.0,96275.0,0.40806173]
[1746266474466,0.2693085,96276.0,96275.0,0.40806173]
[1746266480774,0.26411448,96276.0,96275.0,0.40806173]
[1746266485578,0.25632345,96276.0,96275.0,0.40806173]
[1746266487682,0.59934034,96276.0,96275.0,0.40806173]
[1746266490571,0.79402849,96276.0,96275.0,0.16847543]
[1746266491678,0.79402849,96276.0,96275.0,0.37616173]
[1746266492485,0.79402849,96276.0,96275.0,0.16847543]
[1746266492682,0.79402849,96276.0,96275.0,0.37616173]
[1746266495773,0.78623729,96276.0,96275.0,0.16847543]
[1746266496887,0.78623729,96276.0,96275.0,0.37616173]
[1746266506494,0.7784462,96276.0,96275.0,0.37616173]
[1746266509503,0.43542931,96276.0,96275.0,0.16847543]
[1746266509798,0.7784462,96276.0,96275.0,0.16847543]
[1746266509997,0.7784462,96276.0,96275.0,0.13367543]
[1746266510599,0.7784462,96276.0,96269.0,0.0335]
[1746266510600,0.2076971,96270.0,96269.0,0.2411988]
[1746266510898,0.79540214,96270.0,96269.0,0.0335]
[1746266511300,0.79540214,96270.0,96269.0,0.1515]
[1746266511493,0.86210214,96270.0,96269.0,0.1515]
[1746266511700,0.86410214,96270.0,96269.0,0.1515]
[1746266512001,0.86610214,96270.0,96269.0,0.1515]
[1746266512199,0.86610214,96270.0,96269.0,0.3591992]
[1746266512800,0.86610214,96270.0,96269.0,0.1515]
[1746266515595,1.23744236,96270.0,96269.0,0.1515]
[1746266516202,1.23744236,96270.0,96269.0,0.0335]
[1746266516690,1.22690214,96270.0,96269.0,0.0335]
[1746266517299,1.22690214,96270.0,96269.0,0.1515]
[1746266522407,0.86610214,96270.0,96269.0,0.1515]
[1746266534703,0.52308525,96270.0,96269.0,0.1515]
[1746266535006,0.86610214,96270.0,96269.0,0.1515]
[1746266536906,0.2077316,96254.0,96252.0,0.0015584]
[1746266537115,0.42241975,96254.0,96253.0,0.36664375]
[1746266538110,0.42241975,96254.0,96253.0,0.48464375]
[1746266538613,0.42241975,96254.0,96253.0,0.119]
[1746266540212,0.42241975,96254.0,96253.0,0.1558]
[1746266540512,0.42241975,96254.0,96253.0,0.1892]
[1746266544203,0.42241975,96254.0,96253.0,0.1882]
[1746266544402,0.42241975,96254.0,96253.0,0.1892]
[1746266544909,0.42241975,96254.0,96253.0,0.3969337]
[1746266545611,0.42241975,96254.0,96253.0,0.1892]
[1746266546712,0.42241975,96254.0,96253.0,0.3969337]
[1746266546909,0.42241975,96254.0,96253.0,0.1892]
[1746266548714,0.42241975,96254.0,96253.0,0.3969337]
[1746266550006,0.42241975,96254.0,96253.0,0.1892]
[1746266554819,0.76543664,96254.0,96253.0,0.1892]
[1746266557725,0.76543664,96254.0,96253.0,0.3969337]
[1746266559925,0.76543664,96254.0,96253.0,0.1892]
[1746266560426,0.76543664,96254.0,96253.0,0.3969337]
[1746266567228,0.74543664,96254.0,96253.0,0.3969337]
[1746266572627,0.40241975,96254.0,96253.0,0.3969337]
[1746266572833,0.74543664,96254.0,96253.0,0.3969337]
[1746266579836,0.74543664,96254.0,96253.0,0.1892]
[1746266581339,0.74543664,96254.0,96253.0,0.1558]
[1746266587446,0.74543664,96254.0,96253.0,0.3635337]
[1746266587944,0.74543664,96254.0,96253.0,0.3976337]
[1746266588346,0.74543664,96254.0,96253.0,0.4176337]
[1746266592749,0.19993909,96254.0,96253.0,0.43226348]
[1746266602556,0.19214693,96254.0,96253.0,0.43226348]
[1746266606864,0.19214693,96254.0,96253.0,0.4176337]
[1746266609564,0.19214693,96254.0,96253.0,0.57650824]
[1746266617669,0.19214693,96254.0,96253.0,0.4176337]
[1746266629889,0.2783273,96256.0,96255.0,0.2077294]
[1746266630085,0.2428273,96256.0,96255.0,0.8065294]
[1746266630282,0.58584419,96256.0,96255.0,0.8065294]
[1746266630483,0.58584419,96256.0,96255.0,2.3065294]
[1746266631892,0.0358,96263.0,96260.0,0.2596435]
[1746266632097,0.58603119,96262.0,96261.0,0.0707]
[1746266632297,0.58603119,96262.0,96261.0,0.1407]
[1746266632494,0.2430143,96262.0,96261.0,0.1407]
[1746266632799,0.2430143,96262.0,96261.0,0.3484165]
[1746266633093,0.2430143,96262.0,96261.0,0.4664165]
[1746266634692,0.2440143,96262.0,96261.0,0.4664165]
[1746266635498,0.2450143,96262.0,96261.0,0.4664165]
[1746266635800,0.2450143,96262.0,96261.0,0.47661929]
[1746266636998,0.002,96262.0,96261.0,0.47661929]
[1746266637204,0.0358,96267.0,96266.0,0.2077057]
[1746266637394,0.0358,96267.0,96266.0,0.6785057]
[1746266637595,0.57350504,96267.0,96266.0,0.6785057]
[1746266637794,0.0358,96267.0,96266.0,0.6785057]
[1746266638000,0.0519243,96270.0,96268.0,0.2076992]
[1746266638001,0.051925,96269.0,96268.0,0.2076992]
[1746266638304,0.087425,96269.0,96268.0,0.4356992]
[1746266638503,0.2431992,96269.0,96268.0,0.4356992]
[1746266639104,0.2451992,96269.0,96268.0,0.4356992]
[1746266639305,0.2461992,96269.0,96268.0,0.4356992]
[1746266645104,0.23840782,96269.0,96268.0,0.4356992]
[1746266645307,0.23840782,96269.0,96268.0,0.45036033]
[1746266649505,0.23840782,96269.0,96268.0,0.48326033]
[1746266651918,0.23840782,96269.0,96268.0,0.48325969]
[1746266655316,0.23061666,96269.0,96268.0,0.48325969]
[1746266655613,0.23061666,96269.0,96268.0,0.4685992]
[1746266657409,0.23061666,96269.0,96268.0,0.5016992]
[1746266658312,0.003,96269.0,96268.0,0.5016992]
[1746266658518,0.0363,96269.0,96268.0,0.51636277]
[1746266658719,0.2439992,96269.0,96268.0,0.51636277]
[1746266659620,0.2439992,96269.0,96268.0,0.5016992]
[1746266667431,0.2439992,96269.0,96268.0,0.4685992]
[1746266670329,0.58701609,96269.0,96268.0,0.4685992]
[1746266671532,0.58701609,96269.0,96268.0,0.68053737]
[1746266672929,0.58701609,96269.0,96268.0,1.04133737]
[1746266674235,0.57922501,96269.0,96268.0,1.05612442]
[1746266675031,0.57922501,96269.0,96268.0,1.04133737]
[1746266675233,0.57922501,96269.0,96268.0,1.05612465]
[1746266678542,0.57922501,96269.0,96268.0,0.84418648]
[1746266679641,0.57922501,96269.0,96268.0,0.8441867]
[1746266681242,0.57922501,96269.0,96268.0,0.84418691]
[1746266684641,0.57922501,96269.0,96268.0,0.8293992]
[1746266686640,0.57922501,96269.0,96268.0,0.8655992]
[1746266690140,0.57143398,96269.0,96268.0,0.88038752]
[1746266690539,0.76612213,96269.0,96268.0,0.88038752]
[1746266691051,0.74540424,96269.0,96268.0,0.88038752]
[1746266698860,0.74540424,96269.0,96268.0,2.38038752]
[1746266700063,0.74540424,96269.0,96268.0,2.01958752]
[1746266700254,0.74540424,96269.0,96268.0,2.38038752]
[1746266700455,0.7376135,96269.0,96268.0,2.38038752]
[1746266701157,0.7376135,96269.0,96268.0,2.38044938]
[1746266702759,0.8063135,96269.0,96268.0,2.38044938]
[1746266703259,0.8063135,96269.0,96268.0,2.3655992]
[1746266703857,0.8063135,96269.0,96268.0,2.3293992]
[1746266704253,0.8063135,96269.0,96268.0,2.34424971]
[1746266704454,0.8063135,96269.0,96268.0,0.84424971]
[1746266704853,0.8063135,96269.0,96268.0,2.34424971]
[1746266705853,0.8063135,96269.0,96268.0,2.3293992]
[1746266706058,0.8063135,96269.0,96268.0,2.34424997]
[1746266707557,0.8063135,96269.0,96268.0,2.3293992]
[1746266715065,0.8063135,96269.0,96268.0,2.48826327]
[1746266717970,0.20771,96264.0,96263.0,0.21184491]
[1746266718178,1.23421504,96264.0,96263.0,0.21184491]
[1746266718376,1.33809504,96264.0,96263.0,0.21184491]
[1746266718772,1.40639504,96264.0,96263.0,0.21184491]
[1746266719172,1.28839504,96264.0,96263.0,0.21184491]
[1746266722781,0.2077143,96262.0,96261.0,0.0339]
[1746266722983,0.80541934,96262.0,96261.0,0.0339]
[1746266723978,0.80541934,96262.0,96261.0,0.2416165]
[1746266725082,0.80541934,96262.0,96261.0,0.3596165]
[1746266726082,0.80541934,96262.0,96261.0,0.2416165]
[1746266727286,0.80541934,96262.0,96261.0,0.3596165]
[1746266731185,1.16621934,96262.0,96261.0,0.3596165]
[1746266734890,1.16621934,96262.0,96261.0,0.1519]
[1746266735091,1.16621934,96262.0,96261.0,0.0339]
[1746266736089,1.16621934,96262.0,96261.0,0.1519]
[1746266736689,1.16621934,96262.0,96261.0,0.3596165]
[1746266736891,0.80541934,96262.0,96261.0,0.3596165]
[1746266737093,1.16621934,96262.0,96261.0,0.3596165]
[1746266737283,0.80541934,96262.0,96261.0,0.3596165]
[1746266737478,1.16621934,96262.0,96261.0,0.3596165]
[1746266737792,0.80541934,96262.0,96261.0,0.3596165]
[1746266738092,1.16621934,96262.0,96261.0,0.3596165]
[1746266738494,1.16621934,96262.0,96261.0,0.1519]
[1746266739391,0.2077337,96253.0,96250.0,0.2427395]
[1746266739591,0.45242185,96253.0,96251.0,0.241836]
[1746266739791,0.45242185,96253.0,96252.0,0.2092943]
[1746266739992,0.52492185,96253.0,96252.0,0.2092943]
[1746266740193,0.52492185,96253.0,96252.0,0.3272943]
[1746266740495,0.52492185,96253.0,96252.0,0.3282943]